Cogmind - Beta 13 @@@ ROGUE MODE // 2024.07.23 @ 17:04:08 Player: Wonda Result: Destroyed by G-47 Trooper with Particle Gun Performance ------------- Evolutions (2) 1000 Regions Visited (3) 600 Robots Destroyed (12) 60 Value Destroyed (433) 433 Prototype IDs (0) 0 Alien Tech Used (0) 0 Bonus (0) 0 TOTAL SCORE: 2093 Bonus ------- None Cogmind --------- Core Integrity 0/550 Matter 300/300 Energy 100/100 System Corruption 0% Temperature Cool (9) Movement Core (150) Ox2 Location -8/Materials Parts ------- > --- POWER (1) -------- (None) > --- PROPULSION (4) --- (None) > --- UTILITY (2) ------ Hardened Medium Armor Plating > --- WEAPON (4) ------- (None) > --- INVENTORY (5) ---- (None) Peak State ------------ > --- POWER ------------ Improved Ion Engine > --- PROPULSION ------- Light Treads Light Treads Light Treads > --- UTILITY ---------- Signal Interpreter Shield Generator > --- WEAPON ----------- (None) > --- INVENTORY -------- Hardened Medium Armor Plating [Rating: 8] Favorites ----------- Power Ion Engine Engine Ion Engine Propulsion Light Treads Treads Light Treads Leg Aluminum Leg Utility Small Storage Unit Device Shield Generator Storage Small Storage Unit Processor Signal Interpreter Protection Hardened Medium Armor Plating Weapon Medium Laser Energy Gun Medium Laser Ballistic Gun Light Assault Rifle Build | -11 -10 -9 -8 ------- Run | Yrd Mat Mat Mat Slots Evolved 4 | . . 2 2 Power . | . . . . Propulsion 2 | . . 2 . Utility . | . . . . Weapon 2 | . . . 2 Parts Attached 18 | 7 1 2 8 Power 2 | 1 . . 1 Engine 2 | 1 . . 1 Core . | . . . . Reactor . | . . . . Propulsion 6 | 2 . 1 3 Treads 4 | . . 1 3 Leg 2 | 2 . . . Wheel . | . . . . Hover . | . . . . Flight . | . . . . Utility 4 | 1 1 . 2 Device 1 | . . . 1 Storage 1 | 1 . . . Processor 1 | . 1 . . Hackware . | . . . . Protection 1 | . . . 1 Artifact . | . . . . Weapon 6 | 3 . 1 2 Energy Gun 3 | 2 . 1 . Energy Cannon . | . . . . Ballistic Gun 3 | 1 . . 2 Ballistic Cannon . | . . . . Launcher . | . . . . Special Weapon . | . . . . Impact Weapon . | . . . . Slashing Weapon . | . . . . Piercing Weapon . | . . . . Special Melee Weapon . | . . . . Unidentified Prototypes . | . . . . Parts Lost 12 | . . 2 10 Power 2 | . . 1 1 Propulsion 4 | . . 1 3 Utility 2 | . . . 2 Weapon 4 | . . . 4 Highest Loss Streak 6 | . . 1 6 To Critical Strikes . | . . . . Average Slot Usage (%) 62 | . 95 67 36 Engine 8 | . 14 10 1 Treads 7 | . . 8 7 Leg 4 | . 28 4 . Storage 10 | . 14 11 5 Processor 10 | . 10 11 7 Energy Gun 19 | . 28 22 7 Naked Turns . | . . . . Heaviest Build 14 | 14 14 14 10 Greatest Support 60 | 20 20 20 60 Greatest Overweight (x) 4 | . . 4 3 Average Overweight (x) . | . . . . Largest Inventory Capacity 8 | 8 8 8 8 Average Capacity 7 | 7 8 8 6 Most Carried 7 | 3 3 6 7 Average Carried 4 | 1 3 5 4 Final Capacity 8 | 8 8 8 5 Final Carried 6 | 3 3 6 . Class Distribution -------------------- 100% | Mutant Dominant Class ---------------- Mutant | -10/Materials Mutant | -9/Materials Mutant | -8/Materials Resources | -11 -10 -9 -8 ----------- Run | Yrd Mat Mat Mat Matter Collected 378 | 141 40 111 86 Remotely . | . . . . Salvage Created 537 | . 81 349 107 Parts 26 | . 2 20 4 Haulers Intercepted . | . . . . Recyclers Shooed 2 | . . 1 1 Parts Field Recycled . | . . . . Retrieved Matter . | . . . . Parts Self-Destructed . | . . . . Prevented . | . . . . Kills | -11 -10 -9 -8 ------- Run | Yrd Mat Mat Mat Combat Hostiles Destroyed 10 | . 2 6 2 Guns 10 | . 2 6 2 Classes Destroyed 5 | . 1 3 1 Builder 1 | . . 1 . Watcher 1 | . . 1 . Grunt 6 | . 2 3 1 Duelist 1 | . . . 1 Sentry 3 | . . 3 . Best Kill Streak 2 | . 2 2 1 Combat Bots Only 2 | . 2 2 1 Max Kills in Single Turn 1 | . 1 1 1 Gunslinging . | . . . . Exploded . | . . . . Melee . | . . . . Uniques/NPCs Destroyed . | . . . . Combat | -11 -10 -9 -8 -------- Run | Yrd Mat Mat Mat Hostile Shots Fired 191 | . 14 43 134 Missed 50 | . 3 8 39 Damage Taken 2234 | . 118 507 1609 Core 748 | . 44 145 559 Absorbed by Shields 61 | . . . 61 Core Remaining (%) 81 | 100 82 63 . Volleys Fired 54 | . 8 26 20 Largest 2 | . 2 2 2 Hottest 100 | . 100 100 100 Shots Fired 94 | . 16 52 26 Gun 94 | . 16 52 26 Cannon . | . . . . Launcher . | . . . . Special . | . . . . Kinetic 24 | . . . 24 Thermal 70 | . 16 52 2 Explosive . | . . . . Electromagnetic . | . . . . Robot Hit Streak 7 | . 4 7 5 Robot Miss Streak 7 | . 7 5 3 Penetration Max . | . . . . Secondary Targets . | . . . . Shots Hit Robots 48 | . 6 27 15 Core Hits 34 | . 4 17 13 Critical Kills . | . . . . Critical Parts Destroyed . | . . . . Critical Strikes 4 | . 1 3 . Burn 4 | . 1 3 . Melee Attacks . | . . . . Impact . | . . . . Slashing . | . . . . Piercing . | . . . . Sneak Attacks . | . . . . Combat Hostiles . | . . . . Follow-up Attacks . | . . . . Damage Inflicted 687 | . 102 373 212 Guns 665 | . 102 364 199 Cannons . | . . . . Explosions . | . . . . Melee . | . . . . Ramming 22 | . . 9 13 Kinetic 173 | . . . 173 Thermal 492 | . 102 364 26 Explosive . | . . . . Electromagnetic . | . . . . Impact . | . . . . Slashing . | . . . . Piercing . | . . . . Highest Corruption . | . . . . Average Corruption . | . . . . Corruption Purged . | . . . . Corruption Blocked . | . . . . Overload Shots . | . . . . Overflow Damage . | . . . . Projectiles . | . . . . Explosions . | . . . . Melee . | . . . . Knockbacks . | . . . . Impact . | . . . . Kinetic . | . . . . Secondary . | . . . . Self-Inflicted Damage 2 | . . . 2 Shots . | . . . . Rammed 12 | . . 2 10 Targets Rammed 12 | . . 2 10 Kicked . | . . . . Crushed . | . . . . Highest Temperature 294 | . 294 216 10 Average Temperature 83 | . 124 70 6 Received Heat Transfer 963 | . 60 210 693 Siege Activations . | . . . . Robots Corrupted . | . . . . Combat Hostiles . | . . . . Parts Fried . | . . . . Impact Corruptions . | . . . . Robots Melted . | . . . . Combat Hostiles . | . . . . Parts Melted 6 | . 1 5 . Heat Transferred 1739 | . 370 1295 74 Parts Sabotaged . | . . . . Parts Stolen . | . . . . Parts Stripped . | . . . . Power Chain Reactions . | . . . . Alert | -11 -10 -9 -8 ------- Run | Yrd Mat Mat Mat Peak Influence 113 | . 80 113 66 Initial 46 | . . 33 46 Average 43 | . 27 49 40 Maximum Alert Level . | . . . . Low Security (%) 100 | 100 100 100 100 Level 1 . | . . . . Level 2 . | . . . . Level 3 . | . . . . Level 4 . | . . . . Level 5 . | . . . . High Security . | . . . . Max Security . | . . . . Squads Dispatched 4 | . 2 1 1 Investigation . | . . . . Extermination . | . . . . Reinforcement 4 | . 2 1 1 Assault . | . . . . Garrison . | . . . . Intercept . | . . . . Searches Triggered . | . . . . Construction Impeded . | . . . . Haulers Reinforced . | . . . . Active Scanning Responses . | . . . . Cargo Convoy Interrupts . | . . . . Stealth | -11 -10 -9 -8 --------- Run | Yrd Mat Mat Mat Distress Signals 3 | . 1 1 1 Communications Jammed . | . . . . Distress Signals . | . . . . Times Spotted 28 | . 5 12 11 Peak Tracking Total 7 | . 4 5 7 Tactical Retreats 1 | . 1 . . Traps | -11 -10 -9 -8 ------- Run | Yrd Mat Mat Mat Traps Triggered . | . . . . Indirectly . | . . . . Trap Hack Attempts . | . . . . Triggered . | . . . . Disarmed . | . . . . Reprogrammed . | . . . . Reused . | . . . . Traps Extracted . | . . . . Installed . | . . . . Triggered . | . . . . Machines | -11 -10 -9 -8 ---------- Run | Yrd Mat Mat Mat Machines Disabled . | . . . . Max in Single Turn . | . . . . Machines Repaired . | . . . . Machines Dismantled . | . . . . Machines Sabotaged . | . . . . Overloaded Fab Kills . | . . . . Hacking | -11 -10 -9 -8 --------- Run | Yrd Mat Mat Mat Machines Accessed . | . . . . Terminals . | . . . . Fabricators . | . . . . Repair Stations . | . . . . Recycling Units . | . . . . Scanalyzers . | . . . . Garrison Access . | . . . . Total Hacks . | . . . . Successful . | . . . . Failed . | . . . . Catastrophic . | . . . . Database Lockouts . | . . . . Manual . | . . . . Terminals . | . . . . Fabricators . | . . . . Repair Stations . | . . . . Recycling Units . | . . . . Scanalyzers . | . . . . Garrison Access . | . . . . Terminal Hacks . | . . . . Fabricator Hacks . | . . . . Repair Station Hacks . | . . . . Recycling Unit Hacks . | . . . . Scanalyzer . | . . . . Garrison Access Hacks . | . . . . Unauthorized Hacks . | . . . . Terminals . | . . . . Fabricators . | . . . . Repair Stations . | . . . . Recycling Units . | . . . . Scanalyzers . | . . . . Garrison Access . | . . . . Data Cores Recovered . | . . . . Used . | . . . . Hacking Detections . | . . . . Full Trace Events . | . . . . Feedback Events . | . . . . Feedback Blocked . | . . . . Robot Schematics Acquired . | . . . . Robots Built . | . . . . Authchips . | . . . . Time . | . . . . Total Robot Build Rating . | . . . . Part Schematics Acquired . | . . . . Parts Built . | . . . . Authchips . | . . . . Time . | . . . . Total Part Build Rating . | . . . . Parts Repaired . | . . . . Time . | . . . . Parts Recycled . | . . . . Recycled Matter . | . . . . Retrieved Matter . | . . . . Retrieved Components . | . . . . Parts Scanalyzed . | . . . . Part Schematics Acquired . | . . . . Parts Damaged . | . . . . Bothacking | -11 -10 -9 -8 ------------ Run | Yrd Mat Mat Mat Used RIF Installer . | . . . . Robots Hacked . | . . . . Non-combat . | . . . . Combat . | . . . . Robot Hacks Applied . | . . . . Relay Couplers Released . | . . . . Fabnet Peak Effective % . | . . . . Robots Rewired . | . . . . Allies Hacked . | . . . . Hacks Repelled . | . . . . Allies | -11 -10 -9 -8 -------- Run | Yrd Mat Mat Mat Total Allies . | . . . . Largest Group . | . . . . Highest-Rated Group . | . . . . Highest-Rated Ally . | . . . . Total Orders . | . . . . Ally Attacks . | . . . . Total Damage . | . . . . Kills . | . . . . Allies Corrupted . | . . . . Allies Melted . | . . . . Intel | -11 -10 -9 -8 ------- Run | Yrd Mat Mat Mat Robot Analysis Total . | . . . . Derelict Logs Recovered . | . . . . Drone Launches . | . . . . Drone Recoveries . | . . . . Exploration | -11 -10 -9 -8 ------------- Run | Yrd Mat Mat Mat Turns Passed 1385 | 75 68 990 252 Spaces Moved 759 | 49 36 553 121 Core 61 | 1 . 31 29 Treads 539 | . . 447 92 Legs 159 | 48 36 75 . Wheels . | . . . . Hover . | . . . . Flight . | . . . . Fastest Speed 50 | 50 120 120 50 Average Speed 153 | 118 120 160 149 Slowest Speed 250 | 120 120 250 200 Overloaded Moves . | . . . . Propulsion Burnouts . | . . . . Robots Hopped . | . . . . Cave-ins Triggered . | . . . . Exploration Rate (%) 18 | 4 17 38 13 Regions Visited 3 Branch Regions . Pre-discovered Areas . | . . . . Known Exits Taken 2 | . 1 1 . Unknown Exits Taken 1 | 1 . . . Scrap Searched . | . . . . Spaces Dug . | . . . . Terrain Destroyed . | . . . . Melee . | . . . . Projectile . | . . . . AOE . | . . . . Terrain Rammed . | . . . . Walls Destroyed . | . . . . Machines Disabled . | . . . . Actions | -11 -10 -9 -8 --------- Run | Yrd Mat Mat Mat Total 875 | 64 44 605 162 Wait 22 | 4 . 17 1 Move 756 | 48 35 552 121 Hop . | . . . . Pick Up 8 | 4 . 3 1 Fast Attach 8 | 5 1 1 1 Attach 10 | 2 . 1 7 Detach 4 | 1 . 2 1 Swap . | . . . . Drop 1 | . . 1 . Fire 54 | . 8 26 20 Melee . | . . . . Ram 3 | . . . 3 Kick . | . . . . Crush 9 | . . 2 7 Escape Stasis . | . . . . Rewire . | . . . . Trap . | . . . . Miscellaneous . | . . . . Route ------- -11/Scrapyard -10/Materials -9/Materials (discovered 2 exits: *Mat / *Min) -8/Materials History --------- Turn | Location | Event 5 | -11/Scrapyard | Discovered new exit (range 16) 76 | -11/Scrapyard | Entered Materials 107 | -10/Materials | Discovered new exit (range 15) 143 | -10/Materials | Identified exit to Materials 144 | -10/Materials | Entered another Materials area 144 | -9/Materials | Evolved 2 slots: Propulsion x2 308 | -9/Materials | Build established: Mutant 652 | -9/Materials | Discovered new exit (range 11) 695 | -9/Materials | Discovered new exit (range 16) 717 | -9/Materials | Identified exit to Materials 910 | -9/Materials | Identified exit to Mines 1134 | -9/Materials | Entered another Materials area 1134 | -8/Materials | Evolved 2 slots: Weapon x2 1331 | -8/Materials | Lost 6 parts (1n1u4w) 1346 | -8/Materials | Core integrity fell below 50% 1362 | -8/Materials | Core integrity fell below 20% 1386 | -8/Materials | Destroyed by G-47 Trooper with Particle Gun Last Messages --------------- W-25 Informer sends out distress signal. O-16 Technician: "IFF HANDSHAKE FAILED. SECURING TERMINAL." ALERT: Hostiles spotted, dispatching reinforcements to Terminal M005. Slammed into Y-45 Defender. Lgt. Treads destroyed. Imp. Ion Engine destroyed. Slammed into L-31 Rogue. Critical hit (Burn: +37). Slammed into L-31 Rogue. Lgt. Treads destroyed. Discarded Signal Interpreter. Slammed into G-47 Trooper. Slammed into L-31 Rogue. Slammed into G-47 Trooper. Shield Generator broken. Destabilizing: Short circuit. Critical hit (Burn: +37). Broken Shield Generator destroyed. Map ----- +----------------------------------------------------+ | ??????????????????????????? ????????????# | | ??????????????????????????? ?????????????# | | ??????????????????????????? ???????????? #####+## | | ???????????????????????#+##+#############+### | | ???????????????????????# = | | ???????????????????????+ | | ???????????????????????# | | ???????????????????????# ################## | | ???????????????????????# #????????????????## # | | ???????????????????????#% #?????????????????# # | | ???????????????????????# #?????????????????# # | | ????????????????##?????#[/ #????###??????????# # | | ????????######## ####### %=### ############ # | | ????????# # [ # | | ????????# """ !# # | | ????????# """ #|!! ##### ##+######### # | | ????????# """ #!!! #?????####??????????# # | | ????????# % #!! #???????????????????# # | | ????????# """% # #???????????????????# # | | ????????# """ %%# #???????????????????# # | | ????????# """ %+% ##g#####?????????????????# # | | ????????# # # Y #?????????????????# # | | ????????########## # g #?????????????????##### | | ??????????????# # ""g #?????????????????????? | | ??????????????# # "T l #?????????????????????? | | ??????????????####### "" @ #?????????????????????? | | ????????????????????# #?????????????????????? | | ????????????????????########?????????????????????? | | ?????????????????????????????????????????????????? | | ?????????????????????????????????????????????????? | | | | | | | | | | | | | | | | | | | | | | | | | | | | | | | | | | | | | | | | | +----------------------------------------------------+ Best States ------------- Heat Dissipation 31 Energy Generation 12 Energy Capacity 265 Matter Stores 300 Matter Capacity 300 Sight Range 16 Terrain Scan Density 10 Armor Coverage 225 Evasion (%) 55 Recoil Reduction 3 Item Schematics ----------------- None Robot Schematics ------------------ None Fabricated ------------ Nothing Alien Tech Used ----------------- None Achievements -------------- None Challenges ------------ None Game ------ Seed RagnarokGuidedPurifier Manual? 0 Play Time 00:24:15 Cumulative 4.6 hours Start 2024.07.20 @ 22:22:57 End 2024.07.23 @ 17:04:08 Sessions 7 Manual Loads 0 Difficulty Rogue Special Mode None Game No. 6 Rogue 6 Adventurer 0 Explorer 0 Win Type - Total 0 Types 0/0/0/0/0/0/0/0/0 Lore% 8 Gallery% 9 Achievement% 8 Wizard Run 0 Options --------- Layout 1 ASCII 0 Keyboard 1 Movement Numpad Keybinds 0 Fullscreen 1 Font 16/SmallcapsGlow Map View 50x35 Zoom Use 2% Tactical HUD 0 Map Filters NONE Filters NONE Steam SD RUN: e0c77d32-d3fd-44a3-bba6-36abec8eb506